[Event "Gibraltar Masters 18th"]
[Site "Gibraltar"]
[Date "2020.01.25"]
[Round "5.20"]
[White "Yilmaz, Mustafa"]
[Black "Abdumalik, Zhansaya"]
[Result "1/2-1/2"]
[ECO "D97"]
[WhiteElo "2607"]
[BlackElo "2471"]
[PlyCount "80"]
[EventDate "2020.01.21"]
[EventType "swiss"]
[EventRounds "10"]
[EventCountry "GGB"]
[SourceTitle "BritBase"]
[Source "John Saunders"]
[SourceDate "2021.06.05"]
[SourceVersion "1"]
[SourceVersionDate "2021.06.05"]
[SourceQuality "1"]
[TimeControl "40/100:0"]
[WhiteClock "0:00:40"]
[BlackClock "0:01:11"]

1. d4 {[%emt 0:00:00]} Nf6 {[%emt 0:00:00]} 2. c4 {[%emt 0:00:00]} g6 {[%emt 0:
00:00]} 3. Nc3 {[%emt 0:00:00]} d5 {[%emt 0:00:00]} 4. Nf3 {[%emt 0:00:00]} Bg7
{[%emt 0:00:00]} 5. Qb3 {[%emt 0:00:00]} dxc4 {[%emt 0:00:00]} 6. Qxc4 {
[%emt 0:00:00]} Na6 {[%emt 0:00:00]} 7. e4 {[%emt 0:00:00]} O-O {[%emt 0:00:00]
} 8. e5 {[%emt 0:00:00]} Nd7 {[%emt 0:00:00]} 9. e6 {[%emt 0:00:00]} fxe6 {
[%emt 0:00:00]} 10. Be3 {[%emt 0:00:00]} Nb6 {[%emt 0:00:00]} 11. Qb3 {[%emt 0:
00:00]} Qd6 {[%emt 0:00:00]} 12. Bxa6 {[%emt 0:00:00]} bxa6 {[%emt 0:00:00]}
13. Ng5 {[%emt 0:00:00]} a5 {[%emt 0:00:00]} 14. O-O {[%emt 0:00:00]} Rf5 {
[%emt 0:00:00]} 15. Rfe1 {[%emt 0:00:00]} Nd5 {[%emt 0:00:00]} 16. Nge4 {
[%emt 0:00:00]} Qb6 {[%emt 0:00:00]} 17. Qc2 {[%emt 0:00:00]} Rb8 {[%emt 0:00:
00]} 18. Na4 {[%emt 0:00:00]} Qb5 {[%emt 0:00:00]} 19. Rad1 {[%emt 0:00:00]}
Bb7 {[%emt 0:00:00]} 20. b3 {[%emt 0:00:00]} Nb4 {[%emt 0:00:00]} 21. Qb1 {
[%emt 0:00:00]} Qc6 {[%emt 0:00:00]} 22. f3 {[%emt 0:00:00]} Qc2 {[%emt 0:00:
00]} 23. Rd2 {[%emt 0:00:00]} Qxb1 {[%emt 0:00:00]} 24. Rxb1 {[%emt 0:00:00]}
Rd8 {[%emt 0:00:00]} 25. Nac3 {[%emt 0:00:00]} Nd5 {[%emt 0:00:00]} 26. Nxd5 {
[%emt 0:00:00]} Rfxd5 {[%emt 0:00:00]} 27. Rbd1 {[%emt 0:00:00]} h6 {[%emt 0:
00:00]} 28. Kf2 {[%emt 0:00:00]} Kf7 {[%emt 0:00:00]} 29. Rc1 {[%emt 0:00:00]}
Rc8 {[%emt 0:00:00]} 30. Nc5 {[%emt 0:00:00]} Ba8 {[%emt 0:00:00]} 31. Rc4 {
[%emt 0:00:00]} g5 {[%emt 0:00:00]} 32. h3 {[%emt 0:00:00]} Rcd8 {[%emt 0:00:
00]} 33. Ke2 {[%emt 0:00:00]} e5 {[%emt 0:00:00]} 34. dxe5 {[%emt 0:00:00]}
Bxe5 {[%emt 0:00:00]} 35. Ra4 {[%emt 0:00:00]} Bc6 {[%emt 0:00:00]} 36. Rxa5 {
[%emt 0:00:00]} Rxd2+ {[%emt 0:00:00]} 37. Bxd2 {[%emt 0:00:00]} Rd5 {[%emt 0:
00:00]} 38. a4 {[%emt 0:00:35]} Bd4 {[%emt 0:00:00]} 39. Nd3 {[%emt 0:00:00]}
Ke6 {[%emt 0:00:00]} 40. Rxd5 {[%emt 0:00:25]} Bxd5 {[%emt 0:00:29]} 1/2-1/2

[Event "Gibraltar Masters 18th"]
[Site "Gibraltar"]
[Date "2020.01.25"]
[Round "5.21"]
[White "Gagare, Shardul"]
[Black "Karthikeyan, Murali"]
[Result "1/2-1/2"]
[ECO "C55"]
[WhiteElo "2481"]
[BlackElo "2606"]
[PlyCount "110"]
[EventDate "2020.01.21"]
[EventType "swiss"]
[EventRounds "10"]
[EventCountry "GGB"]
[SourceTitle "BritBase"]
[Source "John Saunders"]
[SourceDate "2021.06.05"]
[SourceVersion "1"]
[SourceVersionDate "2021.06.05"]
[SourceQuality "1"]
[TimeControl "40/100:0"]
[WhiteClock "0:00:59"]
[BlackClock "0:04:05"]

1. e4 {[%emt 0:00:00]} e5 {[%emt 0:00:00]} 2. Bc4 {[%emt 0:00:00]} Nf6 {
[%emt 0:00:00]} 3. d3 {[%emt 0:00:00]} Nc6 {[%emt 0:00:00]} 4. Nf3 {[%emt 0:00:
00]} h6 {[%emt 0:00:00]} 5. O-O {[%emt 0:00:00]} d6 {[%emt 0:00:00]} 6. d4 {
[%emt 0:00:00]} Bg4 {[%emt 0:00:00]} 7. dxe5 {[%emt 0:00:00]} dxe5 {[%emt 0:00:
00]} 8. Nbd2 {[%emt 0:00:00]} Bc5 {[%emt 0:00:00]} 9. c3 {[%emt 0:00:00]} O-O {
[%emt 0:00:00]} 10. b4 {[%emt 0:00:00]} Bb6 {[%emt 0:00:00]} 11. Qc2 {[%emt 0:
00:00]} Re8 {[%emt 0:00:00]} 12. Re1 {[%emt 0:00:00]} a5 {[%emt 0:00:00]} 13.
b5 {[%emt 0:00:00]} Nb8 {[%emt 0:00:00]} 14. Be2 {[%emt 0:00:00]} Nbd7 {
[%emt 0:00:00]} 15. Nc4 {[%emt 0:00:00]} Bc5 {[%emt 0:00:00]} 16. a4 {[%emt 0:
00:00]} Qe7 {[%emt 0:00:00]} 17. h3 {[%emt 0:00:00]} Bxf3 {[%emt 0:00:00]} 18.
Bxf3 {[%emt 0:00:00]} Nb6 {[%emt 0:00:00]} 19. Nd2 {[%emt 0:00:00]} Bd6 {
[%emt 0:00:00]} 20. Nf1 {[%emt 0:00:00]} Qf8 {[%emt 0:00:00]} 21. h4 {[%emt 0:
00:00]} h5 {[%emt 0:00:00]} 22. Ne3 {[%emt 0:00:00]} Bc5 {[%emt 0:00:00]} 23.
Nf5 {[%emt 0:00:00]} Re6 {[%emt 0:00:00]} 24. Qe2 {[%emt 0:00:00]} g6 {[%emt 0:
00:00]} 25. Bh6 {[%emt 0:00:00]} Qc8 {[%emt 0:00:00]} 26. Ne3 {[%emt 0:00:00]}
Bf8 {[%emt 0:00:00]} 27. Bg5 {[%emt 0:00:00]} Nh7 {[%emt 0:00:00]} 28. Rad1 {
[%emt 0:00:39]} f6 {[%emt 0:00:00]} 29. g4 {[%emt 0:00:00]} fxg5 {[%emt 0:00:
00]} 30. gxh5 {[%emt 0:00:00]} Qe8 {[%emt 0:00:00]} 31. hxg6 {[%emt 0:00:00]}
Qxg6 {[%emt 0:00:00]} 32. h5 {[%emt 0:00:00]} Qf7 {[%emt 0:00:00]} 33. Bg4 {
[%emt 0:00:00]} Rd6 {[%emt 0:00:00]} 34. Bf5 {[%emt 0:00:00]} Rad8 {[%emt 0:00:
00]} 35. Ng4 {[%emt 0:00:00]} Nxa4 {[%emt 0:00:00]} 36. Rxd6 {[%emt 0:00:00]}
Rxd6 {[%emt 0:00:00]} 37. Nxe5 {[%emt 0:00:00]} Qb3 {[%emt 0:00:00]} 38. Qf3 {
[%emt 0:00:00]} Nf6 {[%emt 0:00:00]} 39. Ng6 {[%emt 0:00:00]} Qxc3 {[%emt 0:00:
00]} 40. Qxc3 {[%emt 0:00:28]} Nxc3 {[%emt 0:00:00]} 41. e5 {[%emt 0:01:22]}
Nxh5 {[%emt 0:00:00]} 42. exd6 {[%emt 0:00:00]} Bxd6 {[%emt 0:00:00]} 43. Bd3 {
[%emt 0:00:00]} Kg7 {[%emt 0:00:00]} 44. Ne5 {[%emt 0:00:00]} Nf4 {[%emt 0:00:
00]} 45. Bc4 {[%emt 0:00:00]} b6 {[%emt 0:00:00]} 46. Nf3 {[%emt 0:00:00]} Kf6
{[%emt 0:00:00]} 47. Re3 {[%emt 0:00:00]} Nd1 {[%emt 0:00:00]} 48. Re1 {
[%emt 0:00:00]} Nb2 {[%emt 0:00:00]} 49. Ba2 {[%emt 0:00:00]} Nbd3 {[%emt 0:00:
00]} 50. Re8 {[%emt 0:00:00]} Bc5 {[%emt 0:00:00]} 51. Kf1 {[%emt 0:00:00]}
Nxf2 {[%emt 0:00:00]} 52. Ne5 {[%emt 0:00:00]} N2d3 {[%emt 0:00:00]} 53. Nd7+ {
[%emt 0:00:00]} Kg6 {[%emt 0:00:00]} 54. Nxc5 {[%emt 0:00:12]} Nxc5 {[%emt 0:
00:00]} 55. Re7 {[%emt 0:00:00]} Nfe6 {[%emt 0:00:00]} 1/2-1/2

[Event "Gibraltar Masters 18th"]
[Site "Gibraltar"]
[Date "2020.01.25"]
[Round "5.22"]
[White "Pichot, Alan"]
[Black "Trent, Lawrence"]
[Result "1-0"]
[ECO "C54"]
[WhiteElo "2606"]
[BlackElo "2383"]
[PlyCount "73"]
[EventDate "2020.01.21"]
[EventType "swiss"]
[EventRounds "10"]
[EventCountry "GGB"]
[SourceTitle "BritBase"]
[Source "John Saunders"]
[SourceDate "2021.06.05"]
[SourceVersion "1"]
[SourceVersionDate "2021.06.05"]
[SourceQuality "1"]
[TimeControl "40/100:0"]
[WhiteClock "0:03:47"]
[BlackClock "0:00:58"]

1. e4 {[%emt 0:00:00]} e5 {[%emt 0:00:00]} 2. Nf3 {[%emt 0:00:00]} Nc6 {
[%emt 0:00:00]} 3. Bc4 {[%emt 0:00:00]} Bc5 {[%emt 0:00:00]} 4. O-O {[%emt 0:
00:00]} Nf6 {[%emt 0:00:00]} 5. d3 {[%emt 0:00:00]} d6 {[%emt 0:00:00]} 6. c3 {
[%emt 0:00:00]} a6 {[%emt 0:00:00]} 7. a4 {[%emt 0:00:00]} Ba7 {[%emt 0:00:00]}
8. Nbd2 {[%emt 0:00:00]} h6 {[%emt 0:00:00]} 9. b4 {[%emt 0:00:00]} Ne7 {
[%emt 0:00:00]} 10. Re1 {[%emt 0:00:00]} O-O {[%emt 0:00:00]} 11. Nf1 {[%emt 0:
00:00]} Ng6 {[%emt 0:00:00]} 12. Ng3 {[%emt 0:00:00]} c6 {[%emt 0:00:00]} 13.
Be3 {[%emt 0:00:00]} Bxe3 {[%emt 0:00:00]} 14. Rxe3 {[%emt 0:00:00]} a5 {
[%emt 0:00:00]} 15. b5 {[%emt 0:00:00]} d5 {[%emt 0:00:00]} 16. Ba2 {[%emt 0:
00:00]} dxe4 {[%emt 0:00:00]} 17. Nxe4 {[%emt 0:00:00]} Nxe4 {[%emt 0:00:00]}
18. Rxe4 {[%emt 0:00:00]} Bf5 {[%emt 0:00:00]} 19. Re3 {[%emt 0:00:00]} cxb5 {
[%emt 0:00:00]} 20. axb5 {[%emt 0:00:00]} Qc7 {[%emt 0:00:00]} 21. d4 {[%emt 0:
00:00]} Bg4 {[%emt 0:00:00]} 22. Qc2 {[%emt 0:00:00]} exd4 {[%emt 0:00:00]} 23.
Nxd4 {[%emt 0:00:00]} Kh8 {[%emt 0:00:00]} 24. Rae1 {[%emt 0:00:00]} Qb6 {
[%emt 0:00:00]} 25. h3 {[%emt 0:00:00]} Bd7 {[%emt 0:00:00]} 26. Rf3 {[%emt 0:
00:00]} Rae8 {[%emt 0:00:02]} 27. Rxe8 {[%emt 0:00:00]} Bxe8 {[%emt 0:00:00]}
28. Qe4 {[%emt 0:00:00]} a4 {[%emt 0:00:55]} 29. h4 {[%emt 0:00:00]} Qc5 {
[%emt 0:00:00]} 30. g3 {[%emt 0:00:00]} Qe7 {[%emt 0:00:02]} 31. Re3 {[%emt 0:
00:00]} Qxe4 {[%emt 0:00:05]} 32. Rxe4 {[%emt 0:00:00]} h5 {[%emt 0:00:00]} 33.
c4 {[%emt 0:00:00]} b6 {[%emt 0:00:01]} 34. f4 {[%emt 0:00:00]} Kh7 {[%emt 0:
00:02]} 35. f5 {[%emt 0:00:00]} Nh8 {[%emt 0:00:00]} 36. Re7 {[%emt 0:00:00]}
g6 {[%emt 0:00:00]} 37. f6 {[%emt 0:00:52]} 1-0

[Event "Gibraltar Masters 18th"]
[Site "Gibraltar"]
[Date "2020.01.25"]
[Round "5.23"]
[White "Ravi, Teja S"]
[Black "Praggnanandhaa, Rameshbabu"]
[Result "0-1"]
[ECO "E04"]
[WhiteElo "2464"]
[BlackElo "2602"]
[PlyCount "52"]
[EventDate "2020.01.21"]
[EventType "swiss"]
[EventRounds "10"]
[EventCountry "GGB"]
[SourceTitle "BritBase"]
[Source "John Saunders"]
[SourceDate "2021.06.05"]
[SourceVersion "1"]
[SourceVersionDate "2021.06.05"]
[SourceQuality "1"]
[TimeControl "40/100:0"]
[WhiteClock "0:18:35"]
[BlackClock "0:16:38"]

1. d4 {[%emt 0:00:00]} Nf6 {[%emt 0:00:00]} 2. Nf3 {[%emt 0:00:00]} d5 {
[%emt 0:00:00]} 3. c4 {[%emt 0:00:00]} e6 {[%emt 0:00:00]} 4. g3 {[%emt 0:00:
00]} dxc4 {[%emt 0:00:00]} 5. Bg2 {[%emt 0:00:00]} a6 {[%emt 0:00:00]} 6. O-O {
[%emt 0:00:00]} Nc6 {[%emt 0:00:00]} 7. e3 {[%emt 0:00:00]} Rb8 {[%emt 0:00:00]
} 8. Nfd2 {[%emt 0:00:00]} e5 {[%emt 0:00:00]} 9. Bxc6+ {[%emt 0:00:00]} bxc6 {
[%emt 0:00:00]} 10. dxe5 {[%emt 0:00:00]} Ng4 {[%emt 0:00:00]} 11. Nxc4 {
[%emt 0:00:00]} Be6 {[%emt 0:00:00]} 12. Nbd2 {[%emt 0:00:00]} Bb4 {[%emt 0:00:
00]} 13. b3 {[%emt 0:00:00]} h5 {[%emt 0:00:00]} 14. f3 {[%emt 0:00:00]} Nxe3 {
[%emt 0:00:00]} 15. Nxe3 {[%emt 0:00:00]} Qd4 {[%emt 0:00:00]} 16. a3 {[%emt 0:
00:00]} Be7 {[%emt 0:00:00]} 17. Qc2 {[%emt 0:00:00]} Qxe3+ {[%emt 0:00:00]}
18. Kg2 {[%emt 0:00:00]} h4 {[%emt 0:00:00]} 19. Ne4 {[%emt 0:00:00]} Qxb3 {
[%emt 0:00:00]} 20. Qxc6+ {[%emt 0:00:00]} Bd7 {[%emt 0:00:00]} 21. Qxc7 {
[%emt 0:00:00]} hxg3 {[%emt 0:00:00]} 22. h4 {[%emt 0:00:00]} Rc8 {[%emt 0:00:
00]} 23. Nd6+ {[%emt 0:00:00]} Bxd6 {[%emt 0:00:00]} 24. Qxd6 {[%emt 0:00:00]}
Rxh4 {[%emt 0:00:00]} 25. Bd2 {[%emt 0:00:00]} Rc6 {[%emt 0:00:00]} 26. Rab1 {
[%emt 0:00:00]} Rxd6 {[%emt 0:00:00]} 0-1

[Event "Gibraltar Masters 18th"]
[Site "Gibraltar"]
[Date "2020.01.25"]
[Round "5.24"]
[White "Sardana, Rishi"]
[Black "Can, Emre"]
[Result "1/2-1/2"]
[ECO "B70"]
[WhiteElo "2437"]
[BlackElo "2600"]
[PlyCount "123"]
[EventDate "2020.01.21"]
[EventType "swiss"]
[EventRounds "10"]
[EventCountry "GGB"]
[SourceTitle "BritBase"]
[Source "John Saunders"]
[SourceDate "2021.06.05"]
[SourceVersion "1"]
[SourceVersionDate "2021.06.05"]
[SourceQuality "1"]
[TimeControl "40/100:0"]
[WhiteClock "0:18:10"]
[BlackClock "0:44:23"]

1. e4 {[%emt 0:00:00]} c5 {[%emt 0:00:00]} 2. Nf3 {[%emt 0:00:00]} d6 {[%emt 0:
00:00]} 3. d4 {[%emt 0:00:00]} cxd4 {[%emt 0:00:00]} 4. Nxd4 {[%emt 0:00:00]}
Nf6 {[%emt 0:00:00]} 5. Nc3 {[%emt 0:00:00]} g6 {[%emt 0:00:00]} 6. g3 {
[%emt 0:00:00]} Bg7 {[%emt 0:00:00]} 7. Bg2 {[%emt 0:00:00]} O-O {[%emt 0:00:
00]} 8. O-O {[%emt 0:00:00]} Nc6 {[%emt 0:00:00]} 9. Nde2 {[%emt 0:00:00]} Rb8
{[%emt 0:00:00]} 10. a4 {[%emt 0:00:00]} a6 {[%emt 0:00:00]} 11. Nd5 {[%emt 0:
00:00]} b5 {[%emt 0:00:00]} 12. axb5 {[%emt 0:00:00]} axb5 {[%emt 0:00:00]} 13.
c3 {[%emt 0:00:00]} b4 {[%emt 0:00:00]} 14. Nd4 {[%emt 0:00:00]} Nxd4 {[%emt 0:
00:00]} 15. Nxf6+ {[%emt 0:00:00]} exf6 {[%emt 0:00:00]} 16. cxd4 {[%emt 0:00:
00]} f5 {[%emt 0:00:00]} 17. Be3 {[%emt 0:00:00]} Re8 {[%emt 0:00:00]} 18. exf5
{[%emt 0:00:00]} Bxf5 {[%emt 0:00:00]} 19. Bc6 {[%emt 0:00:00]} Bd7 {[%emt 0:
00:00]} 20. Qa4 {[%emt 0:00:00]} Bxc6 {[%emt 0:00:00]} 21. Qxc6 {[%emt 0:00:00]
} h5 {[%emt 0:00:00]} 22. Ra7 {[%emt 0:00:00]} Qf6 {[%emt 0:00:00]} 23. Qd5 {
[%emt 0:00:00]} Qe6 {[%emt 0:00:00]} 24. Qxe6 {[%emt 0:00:00]} fxe6 {[%emt 0:
00:00]} 25. Rc1 {[%emt 0:00:00]} b3 {[%emt 0:00:00]} 26. Rcc7 {[%emt 0:00:00]}
Bf6 {[%emt 0:00:00]} 27. Rf7 {[%emt 0:00:00]} Rf8 {[%emt 0:00:00]} 28. Rab7 {
[%emt 0:00:00]} Ra8 {[%emt 0:00:00]} 29. Rfd7 {[%emt 0:00:00]} d5 {[%emt 0:00:
00]} 30. Rd6 {[%emt 0:00:00]} Rfb8 {[%emt 0:00:00]} 31. Rxb8+ {[%emt 0:00:00]}
Rxb8 {[%emt 0:00:00]} 32. Rxe6 {[%emt 0:00:00]} Kf7 {[%emt 0:00:00]} 33. Ra6 {
[%emt 0:00:00]} Rb4 {[%emt 0:00:00]} 34. Kf1 {[%emt 0:00:00]} Bxd4 {[%emt 0:00:
00]} 35. Bxd4 {[%emt 0:00:00]} Rxd4 {[%emt 0:00:00]} 36. Rb6 {[%emt 0:00:00]}
Rd2 {[%emt 0:00:00]} 37. Rxb3 {[%emt 0:00:00]} Kf6 {[%emt 0:00:00]} 38. Ke1 {
[%emt 0:00:00]} Rc2 {[%emt 0:00:00]} 39. h4 {[%emt 0:00:00]} Ke5 {[%emt 0:00:
00]} 40. Rb6 {[%emt 0:00:00]} Kf5 {[%emt 0:00:00]} 41. Rb4 {[%emt 0:02:47]} Ke5
{[%emt 0:00:00]} 42. Rb6 {[%emt 0:00:00]} Kf5 {[%emt 0:00:00]} 43. b3 {[%emt 0:
00:00]} Rb2 {[%emt 0:00:00]} 44. Kf1 {[%emt 0:00:00]} d4 {[%emt 0:00:00]} 45.
Rd6 {[%emt 0:00:00]} Rb1+ {[%emt 0:00:00]} 46. Ke2 {[%emt 0:00:00]} Rb2+ {
[%emt 0:00:00]} 47. Ke1 {[%emt 0:00:00]} Rb1+ {[%emt 0:00:00]} 48. Kd2 {
[%emt 0:00:00]} Rb2+ {[%emt 0:00:00]} 49. Kc1 {[%emt 0:00:00]} Rxb3 {[%emt 0:
00:00]} 50. Rxd4 {[%emt 0:00:00]} Rf3 {[%emt 0:00:00]} 51. Rd2 {[%emt 0:00:00]}
Kg4 {[%emt 0:00:00]} 52. Kd1 {[%emt 0:00:00]} Kh3 {[%emt 0:00:00]} 53. Ke1 {
[%emt 0:00:00]} Kg2 {[%emt 0:00:00]} 54. Rd6 {[%emt 0:00:00]} Rxf2 {[%emt 0:00:
00]} 55. Rxg6 {[%emt 0:00:00]} Rf3 {[%emt 0:00:00]} 56. Rg5 {[%emt 0:00:00]}
Rxg3 {[%emt 0:00:00]} 57. Rxh5 {[%emt 0:00:00]} Kh3 {[%emt 0:00:00]} 58. Rh8 {
[%emt 0:00:00]} Kg4 {[%emt 0:00:00]} 59. h5 {[%emt 0:00:00]} Rh3 {[%emt 0:00:
00]} 60. h6 {[%emt 0:00:00]} Kg5 {[%emt 0:00:00]} 61. Rg8+ {[%emt 0:00:00]} Kf6
{[%emt 0:00:00]} 62. Rh8 {[%emt 0:00:00]} 1/2-1/2

[Event "Gibraltar Masters 18th"]
[Site "Gibraltar"]
[Date "2020.01.25"]
[Round "5.25"]
[White "Chen, Qi B"]
[Black "Vaibhav, Suri"]
[Result "1/2-1/2"]
[ECO "B55"]
[WhiteElo "2432"]
[BlackElo "2593"]
[PlyCount "67"]
[EventDate "2020.01.21"]
[EventType "swiss"]
[EventRounds "10"]
[EventCountry "GGB"]
[SourceTitle "BritBase"]
[Source "John Saunders"]
[SourceDate "2021.06.05"]
[SourceVersion "1"]
[SourceVersionDate "2021.06.05"]
[SourceQuality "1"]
[TimeControl "40/100:0"]
[WhiteClock "1:03:24"]
[BlackClock "0:28:09"]

1. e4 {[%emt 0:00:00]} c5 {[%emt 0:00:00]} 2. Nf3 {[%emt 0:00:00]} d6 {[%emt 0:
00:00]} 3. d4 {[%emt 0:00:00]} cxd4 {[%emt 0:00:00]} 4. Nxd4 {[%emt 0:00:00]}
Nf6 {[%emt 0:00:00]} 5. f3 {[%emt 0:00:00]} e5 {[%emt 0:00:00]} 6. Nb3 {
[%emt 0:00:00]} d5 {[%emt 0:00:00]} 7. Bg5 {[%emt 0:00:00]} Be6 {[%emt 0:00:00]
} 8. Bxf6 {[%emt 0:00:00]} gxf6 {[%emt 0:00:00]} 9. exd5 {[%emt 0:00:00]} Qxd5
{[%emt 0:00:00]} 10. Qxd5 {[%emt 0:00:00]} Bxd5 {[%emt 0:00:00]} 11. Nc3 {
[%emt 0:00:00]} Be6 {[%emt 0:00:00]} 12. O-O-O {[%emt 0:00:00]} Nd7 {[%emt 0:
00:00]} 13. Nb5 {[%emt 0:00:00]} Ke7 {[%emt 0:00:00]} 14. Nc7 {[%emt 0:00:00]}
Bh6+ {[%emt 0:00:00]} 15. Kb1 {[%emt 0:00:00]} Rad8 {[%emt 0:00:00]} 16. Nd5+ {
[%emt 0:00:00]} Bxd5 {[%emt 0:00:00]} 17. Rxd5 {[%emt 0:00:00]} Nc5 {[%emt 0:
00:00]} 18. Bc4 {[%emt 0:00:00]} Rxd5 {[%emt 0:00:00]} 19. Bxd5 {[%emt 0:00:00]
} Rd8 {[%emt 0:00:00]} 20. c4 {[%emt 0:00:00]} Nxb3 {[%emt 0:00:00]} 21. axb3 {
[%emt 0:00:00]} f5 {[%emt 0:00:00]} 22. Re1 {[%emt 0:00:00]} Kf6 {[%emt 0:00:
00]} 23. Kc2 {[%emt 0:00:00]} a5 {[%emt 0:00:00]} 24. Ra1 {[%emt 0:00:00]} b6 {
[%emt 0:00:00]} 25. b4 {[%emt 0:00:00]} axb4 {[%emt 0:00:00]} 26. Ra7 {[%emt 0:
00:00]} Be3 {[%emt 0:00:00]} 27. Rxf7+ {[%emt 0:00:00]} Kg6 {[%emt 0:00:00]}
28. Re7 {[%emt 0:00:00]} Bd4 {[%emt 0:00:00]} 29. Re6+ {[%emt 0:00:00]} Kg7 {
[%emt 0:00:00]} 30. h4 {[%emt 0:00:00]} h5 {[%emt 0:00:00]} 31. Re7+ {[%emt 0:
00:00]} Kf6 {[%emt 0:00:00]} 32. Re6+ {[%emt 0:00:00]} Kg7 {[%emt 0:00:00]} 33.
Re7+ {[%emt 0:00:00]} Kf6 {[%emt 0:00:00]} 34. Re6+ {[%emt 0:00:00]} 1/2-1/2

[Event "Gibraltar Masters 18th"]
[Site "Gibraltar"]
[Date "2020.01.25"]
[Round "5.26"]
[White "Ivanchuk, Vassily"]
[Black "Pogonina, Natalija"]
[Result "1/2-1/2"]
[ECO "D37"]
[WhiteElo "2698"]
[BlackElo "2479"]
[PlyCount "65"]
[EventDate "2020.01.21"]
[EventType "swiss"]
[EventRounds "10"]
[EventCountry "GGB"]
[SourceTitle "BritBase"]
[Source "John Saunders"]
[SourceDate "2021.06.05"]
[SourceVersion "1"]
[SourceVersionDate "2021.06.05"]
[SourceQuality "1"]
[TimeControl "40/100:0"]
[WhiteClock "0:46:26"]
[BlackClock "0:01:56"]

1. Nf3 {[%emt 0:00:00]} d5 {[%emt 0:00:00]} 2. d4 {[%emt 0:00:00]} Nf6 {
[%emt 0:00:00]} 3. c4 {[%emt 0:00:00]} e6 {[%emt 0:00:00]} 4. Nc3 {[%emt 0:00:
00]} Nbd7 {[%emt 0:00:00]} 5. e3 {[%emt 0:00:00]} Be7 {[%emt 0:00:00]} 6. b3 {
[%emt 0:00:00]} O-O {[%emt 0:00:00]} 7. Bb2 {[%emt 0:00:00]} b6 {[%emt 0:00:00]
} 8. cxd5 {[%emt 0:00:00]} exd5 {[%emt 0:00:00]} 9. Rc1 {[%emt 0:00:00]} a6 {
[%emt 0:00:00]} 10. g3 {[%emt 0:00:00]} Bb7 {[%emt 0:00:00]} 11. Bg2 {[%emt 0:
00:00]} Bd6 {[%emt 0:00:00]} 12. O-O {[%emt 0:00:00]} Re8 {[%emt 0:00:00]} 13.
Nd2 {[%emt 0:00:00]} Rb8 {[%emt 0:00:00]} 14. Qc2 {[%emt 0:00:00]} b5 {[%emt 0:
00:00]} 15. Rfe1 {[%emt 0:00:00]} h6 {[%emt 0:00:00]} 16. Ne2 {[%emt 0:00:00]}
Ne4 {[%emt 0:00:00]} 17. f3 {[%emt 0:00:00]} Nxd2 {[%emt 0:00:00]} 18. Qxd2 {
[%emt 0:00:00]} c5 {[%emt 0:00:00]} 19. dxc5 {[%emt 0:00:00]} Nxc5 {[%emt 0:00:
00]} 20. Nf4 {[%emt 0:00:00]} Bf8 {[%emt 0:00:00]} 21. Red1 {[%emt 0:00:00]}
Qg5 {[%emt 0:00:00]} 22. Nxd5 {[%emt 0:00:00]} Qxd5 {[%emt 0:00:00]} 23. Qxd5 {
[%emt 0:00:00]} Bxd5 {[%emt 0:00:00]} 24. Rxd5 {[%emt 0:00:00]} Rxe3 {[%emt 0:
00:00]} 25. Bf1 {[%emt 0:00:00]} Nb7 {[%emt 0:00:00]} 26. f4 {[%emt 0:00:00]}
Ree8 {[%emt 0:00:00]} 27. Bh3 {[%emt 0:00:00]} Rbd8 {[%emt 0:00:00]} 28. Rxd8 {
[%emt 0:00:00]} Rxd8 {[%emt 0:00:00]} 29. Rc2 {[%emt 0:00:00]} Nc5 {[%emt 0:00:
00]} 30. Kf1 {[%emt 0:00:00]} b4 {[%emt 0:00:00]} 31. Bg2 {[%emt 0:00:00]} a5 {
[%emt 0:00:00]} 32. Bc6 {[%emt 0:00:00]} Nd3 {[%emt 0:00:00]} 33. Bb5 {[%emt 0:
00:00]} 1/2-1/2

[Event "Gibraltar Masters 18th"]
[Site "Gibraltar"]
[Date "2020.01.25"]
[Round "5.27"]
[White "Song, Raymond"]
[Black "Matlakov, Maxim"]
[Result "1/2-1/2"]
[ECO "B51"]
[WhiteElo "2478"]
[BlackElo "2698"]
[PlyCount "60"]
[EventDate "2020.01.21"]
[EventType "swiss"]
[EventRounds "10"]
[EventCountry "GGB"]
[SourceTitle "BritBase"]
[Source "John Saunders"]
[SourceDate "2021.06.05"]
[SourceVersion "1"]
[SourceVersionDate "2021.06.05"]
[SourceQuality "1"]
[TimeControl "40/100:0"]
[WhiteClock "0:57:21"]
[BlackClock "0:26:17"]

1. e4 {[%emt 0:00:00]} c5 {[%emt 0:00:00]} 2. Nf3 {[%emt 0:00:00]} d6 {[%emt 0:
00:00]} 3. Bb5+ {[%emt 0:00:00]} Nd7 {[%emt 0:00:00]} 4. d4 {[%emt 0:00:00]}
cxd4 {[%emt 0:00:00]} 5. Qxd4 {[%emt 0:00:00]} a6 {[%emt 0:00:00]} 6. Bxd7+ {
[%emt 0:00:00]} Bxd7 {[%emt 0:00:00]} 7. c4 {[%emt 0:00:00]} e6 {[%emt 0:00:00]
} 8. Nc3 {[%emt 0:00:00]} Nf6 {[%emt 0:00:00]} 9. Bg5 {[%emt 0:00:00]} Bc6 {
[%emt 0:00:00]} 10. O-O {[%emt 0:00:00]} Be7 {[%emt 0:00:00]} 11. Qd3 {[%emt 0:
00:00]} O-O {[%emt 0:00:00]} 12. Nd4 {[%emt 0:00:00]} Rc8 {[%emt 0:00:00]} 13.
b3 {[%emt 0:00:00]} Qa5 {[%emt 0:00:00]} 14. Bd2 {[%emt 0:00:00]} Qh5 {[%emt 0:
00:00]} 15. f3 {[%emt 0:00:00]} Rfd8 {[%emt 0:00:00]} 16. Rad1 {[%emt 0:00:00]}
Be8 {[%emt 0:00:00]} 17. Rfe1 {[%emt 0:00:00]} h6 {[%emt 0:00:00]} 18. Kh1 {
[%emt 0:00:00]} Nd7 {[%emt 0:00:00]} 19. Be3 {[%emt 0:00:00]} Qa5 {[%emt 0:00:
00]} 20. Bd2 {[%emt 0:00:00]} Qc5 {[%emt 0:00:00]} 21. Be3 {[%emt 0:00:00]} Qa5
{[%emt 0:00:00]} 22. Bd2 {[%emt 0:00:00]} Qc5 {[%emt 0:00:00]} 23. Be3 {
[%emt 0:00:00]} Qc7 {[%emt 0:00:00]} 24. Qd2 {[%emt 0:00:00]} Nf6 {[%emt 0:00:
00]} 25. Rc1 {[%emt 0:00:00]} b6 {[%emt 0:00:00]} 26. Qf2 {[%emt 0:00:00]} Qb7
{[%emt 0:00:00]} 27. a4 {[%emt 0:00:00]} Nd7 {[%emt 0:00:00]} 28. Qg3 {[%emt 0:
00:00]} Kh7 {[%emt 0:00:00]} 29. Red1 {[%emt 0:00:00]} Nc5 {[%emt 0:00:00]} 30.
Rb1 {[%emt 0:00:00]} Bf6 {[%emt 0:00:00]} 1/2-1/2